[Event "3rd VIZAG GM-Open 2022"]
[Site "Visakapatnam"]
[Date "2022.06.13"]
[Round "4.15"]
[White "Adireddy Arjun"]
[Black "Azaladze, Shota"]
[Result "1/2-1/2"]
[ECO "B15"]
[WhiteElo "1898"]
[BlackElo "2420"]
[Annotator "TA"]
[PlyCount "70"]
[EventDate "2022.06.13"]
[EventType "swiss"]
[EventCountry "IND"]
[SourceTitle "playchess.com"]
[Source "ChessBase"]
[SourceQuality "1"]
[TimeControl "5400+30"]

{[%evp 15,70,69,88,100,79,50,70,63,76,98,252,239,248,225,269,156,136,128,218,205,428,416,433,401,418,424,447,396,402,400,413,168,178,165,166,0,0,0,0,0,0,0,0,0,0,0,331,0,0,0,0,0,0,0,0,0,0]} 1. e4 {[%emt 1:31:00][%cal Be2e4,Be4e5][%mdl 32]} g6 {[%emt 1:31:00]} 2. d4 {[%emt 0:00:30]} Bg7 {[%emt 0:00:30]} 3. Nc3 {[%emt 0:00:30]} c6 {[%emt 0:00:30]} 4. f4 {[%emt 0:00:30]} d5 {[%emt 0:00:30]} 5. e5 {[%emt 0:00:30]} Nh6 {[%emt 0:00:30]} 6. Nf3 {[%emt 0:00:30]} Bg4 {[%emt 0:00:30]} 7. h3 {[%emt 0:00:30]} Bxf3 {[%emt 0:00:30]} 8. Qxf3 {[%emt 0:00:30]} f6 {[%emt 0:00:30]} 9. g4 {[%emt 0:00:30] B15: Caro-Kann: 3 Nc3: 3...g6 and 3...dxe4 4 Nxe4 Nf6 5 Nxf6+ exf6.} fxe5 {[%emt 0:00:30]} 10. dxe5 {[%emt 0:00:30]} O-O {[%emt 0:00:30]} 11. Qg3 {[%emt 0:00:30] White is slightly better.} Qb6 {[%emt 0:00:30]} 12. Bd2 {[%emt 0:00:30] [#]} e6 $146 {[%emt 0:00:30] [#]} (12... g5 $16 {might work better.}) ({Predecessor:} 12... Qxb2 13. Rb1 Qa3 14. Rxb7 e6 15. Qe3 Qa5 16. Ne4 Qxa2 17. Ng5 Qa1+ 18. Kf2 {1-0 (18) Solino Nebot,L (1861)-Friend,R (1931) FICGS email 2011}) 13. h4 $1 $18 {[%emt 0:00:30][%cal Bh3h4,Bh4h5][%mdl 32]} Qxb2 14. Rb1 {[%emt 0:00:30][%mdl 64] Skewer, Deflection} Qa3 {[%emt 0:01:00]} 15. Rxb7 {[%emt 0:00:30]} (15. h5 $18) 15... Rf7 $16 {[%emt 0:00:30]} 16. Rb3 {[%emt 0:00:30] White is more active.} Qc5 {[%emt 0:00:30]} (16... Qf8 $16) 17. h5 {[%emt 0:00:30] aiming for hxg6.} g5 {[%emt 0:00:30]} (17... Nd7 18. hxg6 hxg6) 18. fxg5 $18 {[%emt 0:00:30]} Nd7 {[%emt 0:00:30]} 19. gxh6 {[%emt 0:00:30]} Bxe5 {[%emt 0:00:30]} 20. Qh4 {[%emt 0:00:30]} Raf8 {[%emt 0:00:30]} 21. Be2 {[%emt 0:00:30]} Qd6 {[%emt 0:00:30]} 22. Na4 {[%emt 0:00:30]} Bf4 {[%emt 0:00:30]} 23. Bxf4 {[%emt 0:00:30]} ({Weaker is} 23. Bb4 c5 24. Nxc5 (24. Bd2 Bxd2+ 25. Kxd2 Qf4+ 26. Kd1 Qxa4 $15) 24... Nxc5 $11) (23. Rf1 $142 Qe5 24. Bxf4 Rxf4 25. Rxf4 Qxf4 26. Nb2) 23... Qxf4 {[%emt 0:00:30]} 24. Nb2 {[%emt 0:00:30] Threatens to win with g5.} Nc5 {[%emt 0:00:30] [#]} 25. Nd3 $2 {[%emt 0:00:30]} (25. g5 $1 $18 Qc1+ 26. Nd1) 25... Nxd3+ $11 {[%emt 0:00:30]} 26. Rxd3 {[%emt 0:00:30] Black must now prevent Kd1.} Qc1+ {[%emt 0:00:30]} 27. Rd1 {[%emt 0:00:30]} Qe3 {[%emt 0:00:30]} 28. Rd3 {[%emt 0:00:30]} Qc1+ {[%emt 0:00:30]} 29. Bd1 {[%emt 0:00:30] Strongly threatening Rd2.} Rf3 $1 {[%emt 0:00:30] ...Re3+ is the strong threat.} (29... Qf4 $2 30. g5 $18) 30. Rd2 {[%emt 0:00:30] Hoping for Qg5+.} Re3+ {[%emt 0:00:30]} 31. Re2 {[%emt 0:00:30]} Rd3 $1 {[%emt 0:00:30] The position is equal.} 32. cxd3 {[%emt 0:00:30] White wants to mate with Rd2.} Qc3+ {[%emt 0:00:30]} 33. Rd2 {[%emt 0:00:30] Intending Qg5+ and mate.} Qe5+ {[%emt 0:00:30]} 34. Re2 {[%emt 0:00:30]} Qc3+ {[%emt 0:00:30]} 35. Rd2 {[%emt 0:00:30] Threatening mate with Qg5+.} Qe5+ {[%emt 0:00:30] Black escapes into a draw.  Weighted Error Value: White=0.29 (precise) /Black=0.24 (precise)} 1/2-1/2

[Event "3rd VIZAG GM-Open 2022"]
[Site "Visakapatnam"]
[Date "2022.06.13"]
[Round "4.16"]
[White "Hossain, Enamul"]
[Black "Priyankara, Chamil"]
[Result "1/2-1/2"]
[ECO "C41"]
[WhiteElo "2413"]
[BlackElo "1938"]
[Annotator "TA"]
[PlyCount "80"]
[EventDate "2022.06.13"]
[EventType "swiss"]
[EventCountry "IND"]
[SourceTitle "playchess.com"]
[Source "ChessBase"]
[SourceQuality "1"]
[TimeControl "5400+30"]

{[%evp 11,80,31,39,37,43,33,61,39,67,72,69,46,55,39,59,50,91,82,99,78,86,80,112,99,129,111,107,55,58,58,33,22,19,0,0,0,0,0,0,0,0,0,10,16,11,12,12,-25,-12,-8,16,0,0,0,0,-2,-3,-3,-3,-96,-87,-97,-96,-113,-28,-21,-43,-44,-4,-50,-19]} 1. e4 {[%emt 0:00:05]} d6 {[%emt 0:02:59]} 2. d4 {[%emt 0:00:12]} Nf6 {[%emt 0:00:08]} 3. Nc3 {[%emt 0:00:11]} Nbd7 {[%emt 0:00:19]} 4. Nf3 {[%emt 0:00:32]} e5 {[%emt 0:00:12]} 5. Bc4 {[%emt 0:00:06]} Be7 {[%emt 0:00:04]} 6. O-O {[%emt 0:00:14]} c6 {[%emt 0:00:15]} 7. Re1 {[%emt 0:00:20] C41: Philidor Defence.} b5 {[%emt 0:02:11] 7...h6 is a critical line.} 8. Bd3 {[%emt 0:08:20] [#]} b4 $146 {[%emt 0:00:25]} ({Predecessor:} 8... O-O 9. a4 b4 10. Ne2 Re8 11. Ng3 Bf8 12. a5 exd4 13. Nxd4 c5 14. Ndf5 a6 {1-0 (76) Pavlovic,D (2363)-Strikovic,A (2520) Budva 2003}) 9. Ne2 {[%emt 0:00:39] White is more active. White is slightly better.} Qc7 {[%emt 0:02:53]} 10. Ng3 {[%emt 0:00:32]} g6 {[%emt 0:01:01] Against Nf5} 11. c3 {[%emt 0:03:20]} bxc3 {[%emt 0:01:04]} 12. bxc3 {[%emt 0:00:49]} h5 {[%emt 0:03:31]} 13. h3 {[%emt 0:02:00]} Qa5 {[%emt 0:03:58]} 14. Bd2 {[%emt 0:02:09]} Ba6 {[%emt 0:00:54]} 15. Bc2 {[%emt 0:01:09]} Bc4 {[%emt 0:00:38]} 16. Bb3 {[%emt 0:03:00]} Qa6 {[%emt 0:00:36]} 17. Bg5 {[%emt 0:00:38]} O-O {[%emt 0:00:43]} 18. Nh4 {[%emt 0:14:57][%cal Og3f5]} Rfe8 {[%emt 0:02:40]} 19. Qf3 {[%emt 0:00:55]} (19. dxe5 $16 dxe5 20. Bxf6 Bxf6 21. Nxg6 (21. Qxd7 Bxh4 22. Qc7 Qb5 $15) 21... fxg6 22. Qxd7) 19... Bxb3 $14 {[%emt 0:01:25]} 20. axb3 {[%emt 0:00:05]} Qb6 {[%emt 0:00:03]} 21. Nhf5 {[%emt 0:04:07]} Bf8 {[%emt 0:03:55]} 22. Bxf6 {[%emt 0:06:22]} (22. Bh6 {is interesting.} h4 23. Bxf8 hxg3 24. Bh6) 22... Nxf6 {[%emt 0:00:23]} 23. Nxd6 {[%emt 0:00:36]} Bxd6 {[%emt 0:00:10]} 24. Qxf6 {[%emt 0:00:03]} Re6 {[%emt 0:00:08]} 25. Qg5 {[%emt 0:04:27]} exd4 {[%emt 0:21:10]} 26. Nxh5 {[%emt 0:47:42][%cal Bg3h5,Bh5f6,Bf6g4][%mdl 32]} dxc3 {[%emt 0:04:21]} ({But not} 26... Be7 27. Qg3 $16) 27. e5 {[%emt 0:00:00]} Bc5 {[%emt 0:06:48]} ({Don't play} 27... Be7 28. Qg3 $16) 28. Nf6+ {[%emt 0:00:00]} Kg7 $1 {[%emt 0:00:50]} 29. Ng4 {[%emt 0:00:00]} Rh8 {[%emt 0:00:44] Against Qh6+} 30. Qf4 {[%emt 0:00:00]} a5 {[%emt 0:17:49]} 31. Red1 {[%emt 0:00:00] [#] Prevents Bd4. aiming for Rd7.} Qb4 {[%emt 0:00:36]} 32. Qf3 {[%emt 0:00:00]} Rh5 $1 {[%emt 0:02:00]} 33. Rac1 $40 {[%emt 0:00:00][%mdl 128] White attacks.} Bd4 {[%emt 0:22:07]} 34. Rxd4 $1 {[%emt 0:00:00] Chess con chili.} Qxd4 {[%emt 0:00:00]} 35. Qxc3 {[%emt 0:00:00]} (35. Rxc3 $11 Rf5 36. Qg3) 35... Qxc3 $17 {[%emt 0:00:00]} 36. Rxc3 $11 {[%emt 0:00:00] KRR-KRN} Rh8 {[%emt 0:00:00]} 37. Rc5 {[%emt 0:00:00] [#]} Rb8 {[%emt 0:00:00]} ({Better is} 37... Ra8 $1 $17 38. Ne3 Rb8 39. Rxa5 Rxb3) 38. Rxa5 {[%emt 0:00:00]} Rxb3 {[%emt 0:00:00]} 39. Ra8 {[%emt 0:00:00] Prevents Rb8.} Rc3 {[%emt 0:00:00]} 40. Rc8 {[%emt 0:00:00]} (40. g3 $11) 40... c5 {[%emt 0:00:00] Weighted Error Value: White=0.15 (very precise) /Black=0.12 (very precise)} 1/2-1/2

[Event "3rd VIZAG GM-Open 2022"]
[Site "Visakapatnam"]
[Date "2022.06.13"]
[Round "4.17"]
[White "Laxman, R.R."]
[Black "Sri Sai Baswanth P"]
[Result "1-0"]
[ECO "A46"]
[WhiteElo "2420"]
[BlackElo "1896"]
[Annotator "TA"]
[PlyCount "89"]
[EventDate "2022.06.13"]
[EventType "swiss"]
[EventCountry "IND"]
[SourceTitle "playchess.com"]
[Source "ChessBase"]
[SourceQuality "1"]
[TimeControl "5400+30"]

{[%evp 15,89,-25,-31,-38,-37,-23,0,4,4,7,68,55,72,48,81,67,129,131,142,94,160,90,143,154,272,295,270,206,191,185,195,200,197,195,204,181,208,147,189,150,284,293,284,286,422,414,458,450,466,469,471,481,441,441,900,881,940,852,973,973,973,967,965,954,29993,29992,29994,1197,29973,12839,12839,12839,29984,29985,29990,29991]} 1. d4 {[%emt 0:00:03]} Nf6 {[%emt 0:00:05]} 2. Nf3 {[%emt 0:00:08]} e6 {[%emt 0:00:21]} 3. Bg5 {[%emt 0:00:54]} h6 {[%emt 0:00:02]} 4. Bxf6 {[%emt 0:00:33]} Qxf6 {[%emt 0:00:01]} 5. e4 {[%emt 0:00:16]} d6 {[%emt 0:00:21]} 6. Nc3 {[%emt 0:00:47]} g6 {[%emt 0:00:25]} 7. Qd2 {[%emt 0:00:53]} Bg7 {[%emt 0:00:27]} 8. O-O-O {[%emt 0:00:51]} a6 {[%emt 0:01:04]} 9. e5 {[%emt 0:02:35] A46: 1 d4 Nf6 2 Nf3 e6: Torre, London and Colle Systems.} Qe7 {[%emt 0:00:23]} 10. Bd3 {[%emt 0:00:26] [#]} Nc6 $146 {[%emt 0:00:40][%cal Rd6e5]} (10... Nd7 $5 {[%cal Rd6e5]}) ({Predecessor:} 10... Nd7 11. Rhe1 d5 12. Ne2 c5 13. Nf4 Rg8 14. c4 dxc4 15. Be4 cxd4 16. Qxd4 Qc5 17. Nxe6 Qxd4 18. Nxg7+ Rxg7 19. Rxd4 {1-0 (37) Popov,I (2485)-Zherebukh,Y (2371) Minsk 2006}) 11. exd6 {[%emt 0:09:40] The position is equal.} Qxd6 {[%emt 0:03:28]} 12. Ne4 {[%emt 0:01:21]} Qd8 {[%emt 0:02:07]} (12... Qd5 $11) 13. c3 $14 {[%emt 0:01:58] White is more active.} O-O {[%emt 0:04:21]} 14. h4 {[%emt 0:00:12]} f5 {[%emt 0:03:46]} 15. Ng3 {[%emt 0:00:34]} e5 {[%emt 0:02:00]} (15... Qd6 $14) 16. dxe5 $16 {[%emt 0:01:43]} Be6 {[%emt 0:00:08]} 17. Ne2 {[%emt 0:09:05]} (17. h5 $142 g5 18. Qc2) 17... Bd5 {[%emt 0:05:27]} (17... Qe8 $142) 18. Qf4 {[%emt 0:02:07]} (18. Qe3 $142 Qe8 19. Nf4 Bxa2 20. e6) 18... Qe7 {[%emt 0:03:00]} (18... Qe8 $142) 19. Bc4 {[%emt 0:01:19]} Bxc4 {[%emt 0:00:43]} (19... Be6 $16) 20. Qxc4+ $18 {[%emt 0:00:02]} Kh7 {[%emt 0:08:26]} 21. e6 {[%emt 0:26:07]} Rad8 {[%emt 0:00:32] Prevents Rd7.} 22. Nf4 {[%emt 0:00:14] [#] Strongly threatening Rxd8.} Ne5 {[%emt 0:06:25]} 23. Qe2 {[%emt 0:00:46]} Nxf3 {[%emt 0:03:56]} 24. Qxf3 {[%emt 0:00:31]} Be5 {[%emt 0:00:46]} 25. Nd3 {[%emt 0:07:23]} Bd6 {[%emt 0:02:29]} 26. Rde1 {[%emt 0:00:18]} ({Don't play} 26. Qxb7 $6 Qxe6 27. h5 Qxa2 $16) 26... Rf6 {[%emt 0:07:14]} 27. h5 {[%emt 0:00:25]} g5 {[%emt 0:04:29]} (27... Rxe6 $16 {is a better defense.} 28. hxg6+ Kxg6 29. Qxb7 Kg7) 28. Qxb7 {[%emt 0:01:51]} Rxe6 {[%emt 0:00:08] [#] ...Bf4+ is the strong threat.} 29. Qxa6 {[%emt 0:05:43]} Bf4+ {[%emt 0:00:03]} (29... Re4 {might work better.} 30. Qb5 Qe6) 30. Kb1 {[%emt 0:00:06]} Rdd6 {[%emt 0:00:04]} 31. Qb5 {[%emt 0:01:35]} Re2 {[%emt 0:02:31][%cal Od6d3]} 32. Qxf5+ {[%emt 0:00:44]} Kg7 {[%emt 0:00:30][%cal Od6d3]} 33. Qg4 {[%emt 0:03:25]} ({Less strong is} 33. Rxe2 Qxe2 34. Nc1 Qxf2 $18) 33... Re4 {[%emt 0:01:13]} 34. Qf3 {[%emt 0:02:23]} Rxd3 {[%emt 0:04:04]} (34... Rde6 $142 35. Rxe4 Rxe4) 35. Rxe4 {[%emt 0:00:09][%cal Be1e4,Be4d4,Bd4d6,Bd6g6][%mdl 32]} Qd6 {[%emt 0:00:07]} 36. Rd4 {[%emt 0:00:31]} Rxf3 {[%emt 0:00:57]} 37. Rxd6 {[%emt 0:00:02]} Rxf2 {[%emt 0:00:22][%mdl 4096] Endgame KRR-KRB} 38. Rg6+ {[%emt 0:00:06]} Kh7 {[%emt 0:00:12]} 39. Re1 {[%emt 0:00:16] Intending Re7+ and mate.} Rxg2 {[%emt 0:01:20]} 40. Re7+ {[%emt 0:00:07]} Kh8 {[%emt 0:00:08]} 41. Rxh6+ {[%emt 0:00:02]} Kg8 {[%emt 0:00:07]} 42. Ra6 {[%emt 0:00:33][%cal Ra6a8]} Kf8 {[%emt 0:00:11]} 43. Rd7 {[%emt 0:00:23][%cal Ra6a8]} Ke8 {[%emt 0:00:36]} 44. Rg7 {[%emt 0:00:07][%cal Ra6a8]} Kf8 {[%emt 0:00:43]} 45. h6 {[%emt 0:00:02] Weighted Error Value: White=0.11 (very precise) /Black=0.60} 1-0

[Event "3rd VIZAG GM-Open 2022"]
[Site "Visakapatnam"]
[Date "2022.06.13"]
[Round "4.18"]
[White "Kranthi, Kiran P.Khammam"]
[Black "Nguyen, Duc Hoa"]
[Result "0-1"]
[ECO "B21"]
[WhiteElo "1809"]
[BlackElo "2398"]
[Annotator "TA"]
[PlyCount "84"]
[EventDate "2022.06.13"]
[EventType "swiss"]
[EventCountry "IND"]
[SourceTitle "playchess.com"]
[Source "ChessBase"]
[SourceQuality "1"]
[TimeControl "5400+30"]

{[%evp 9,84,-33,-35,-35,-34,-35,0,-37,-52,-84,-80,-74,-80,-79,-79,-102,-114,-97,-102,-106,-91,-131,-135,-130,-127,-127,-133,-139,-146,-166,-150,-218,-218,-218,-227,-226,-211,-220,-213,-197,-88,-481,-481,-481,-481,-481,-474,-472,-388,-506,-500,-504,-505,-695,-699,-679,-633,-614,-595,-1233,-1253,-1304,-1289,-1296,-1260,-1258,-1160,-1203,-1261,-1260,-1171,-1432,-897,-1683,-1543,-971,-752]} 1. e4 {[%emt 0:00:03]} c5 {[%emt 0:00:06]} 2. f4 {[%emt 0:00:18]} d5 {[%emt 0:01:35]} 3. e5 {[%emt 0:00:43]} Nc6 {[%emt 0:01:13]} 4. Bb5 {[%emt 0:00:30]} Qb6 {[%emt 0:02:18]} 5. Bxc6+ {[%emt 0:00:15]} Qxc6 {[%emt 0:00:27]} 6. Nf3 {[%emt 0:00:24] B21: Sicilian: 2 f4 and Morra Gambit.} Nh6 {[%emt 0:02:03]} 7. d3 {[%emt 0:01:04]} Nf5 {[%emt 0:01:17]} 8. O-O {[%emt 0:03:52] The position is equal.} (8. g4 $5 {[%cal Rg4f5]} Nd4 9. Nxd4 cxd4 10. Nd2 $11) 8... h5 {[%emt 0:00:54] [#]} 9. c4 $146 {[%emt 0:05:00]} ({Predecessor:} 9. Nc3 e6 10. a4 b6 11. Nb5 Bb7 12. Re1 Be7 13. b3 a6 14. Nc3 h4 15. h3 {0-1 (24) Brand Lyard,P (1900)-Wilson,N (2069) FICGS email 2021}) 9... dxc4 {[%emt 0:01:51]} 10. dxc4 {[%emt 0:00:24]} e6 {[%emt 0:00:08]} 11. Nc3 {[%emt 0:00:46]} b6 {[%emt 0:00:08]} 12. Qa4 {[%emt 0:02:19]} Qxa4 {[%emt 0:00:35]} 13. Nxa4 {[%emt 0:00:02]} Bb7 {[%emt 0:00:20]} 14. Nc3 {[%emt 0:00:44]} Rd8 {[%emt 0:01:27]} 15. Rd1 {[%emt 0:01:23]} Rxd1+ {[%emt 0:01:31]} 16. Nxd1 {[%emt 0:00:04]} Bxf3 {[%emt 0:01:11]} 17. gxf3 {[%emt 0:00:16]} Be7 {[%emt 0:00:17]} 18. Ne3 {[%emt 0:01:26]} Nd4 {[%emt 0:00:20] Black is more active.} 19. Kg2 {[%emt 0:00:53]} Rh6 {[%emt 0:00:38]} 20. Nf1 {[%emt 0:06:10]} (20. Bd2 $17 {was necessary.}) 20... Rg6+ $19 {[%emt 0:00:38]} 21. Kf2 {[%emt 0:00:10]} Bh4+ {[%emt 0:01:43]} 22. Ng3 {[%emt 0:00:15]} Nf5 {[%emt 0:00:35][%cal Rf5g3]} 23. Bd2 {[%emt 0:02:23]} Bxg3+ {[%emt 0:01:38]} 24. hxg3 {[%emt 0:00:38]} Rxg3 {[%emt 0:01:37]} (24... Nxg3 $19 {has better winning chances. Hoping for ...Nf5.} 25. Rg1 Nf5 26. Rxg6 fxg6) 25. Rg1 $2 {[%emt 0:01:53][%mdl 8192] This costs White the game.} (25. Rh1 $17) 25... Rxg1 {[%emt 0:00:51]} 26. Kxg1 {[%emt 0:00:03][%mdl 4096] Endgame KB-KN} Kd7 {[%emt 0:00:17]} 27. Kf2 {[%emt 0:02:08]} Kc6 {[%emt 0:00:33]} 28. Bc3 {[%emt 0:01:39]} a6 {[%emt 0:00:55][%cal Ba7a6,Ba6b5][%mdl 32]} 29. Bd2 {[%emt 0:01:09]} b5 {[%emt 0:00:57] Black is clearly winning.} 30. cxb5+ {[%emt 0:00:40]} axb5 {[%emt 0:00:25]} 31. a3 {[%emt 0:02:05]} Kd5 {[%emt 0:00:57]} 32. Ba5 {[%emt 0:12:28]} Kc4 {[%emt 0:00:36]} 33. Bb6 {[%emt 0:01:11]} Nd4 {[%emt 0:01:40]} 34. Kg3 {[%emt 0:00:57]} Ne2+ {[%emt 0:00:37]} 35. Kh4 {[%emt 0:00:04]} Nxf4 {[%emt 0:00:05] [#] Strongly threatening ...Nd3.} 36. b3+ {[%emt 0:00:26]} Kxb3 {[%emt 0:00:28] ( -> ...c4)} 37. Bxc5 {[%emt 0:00:18]} g6 {[%emt 0:00:40]} 38. Kg5 {[%emt 0:00:43]} Nd5 {[%emt 0:00:10]} 39. Kh4 {[%emt 0:09:39]} Kc4 {[%emt 0:00:51]} 40. Bf2 {[%emt 0:02:54]} Nf4 {[%emt 0:01:02] [#] ...Nd3 is the strong threat.} 41. Bg3 {[%emt 0:01:00]} Ne2 {[%emt 0:00:21]} 42. Bf2 {[%emt 0:00:35]} Kd5 {[%emt 0:00:08] Weighted Error Value: White=0.78/Black=0.15 (very precise)} 0-1

[Event "3rd VIZAG GM-Open 2022"]
[Site "Visakapatnam"]
[Date "2022.06.13"]
[Round "5.2"]
[White "Mirzoev, Azer"]
[Black "Konguvel, Ponnuswamy"]
[Result "1/2-1/2"]
[ECO "A49"]
[WhiteElo "2476"]
[BlackElo "2331"]
[Annotator "TA"]
[PlyCount "94"]
[EventDate "2022.06.13"]
[EventType "swiss"]
[EventCountry "IND"]
[SourceTitle "playchess.com"]
[Source "ChessBase"]
[SourceQuality "1"]
[TimeControl "5400+30"]

{[%evp 13,94,0,16,9,59,50,56,60,46,33,16,36,29,20,21,13,25,8,33,2,7,6,23,0,0,0,5,0,8,10,13,6,5,0,0,0,0,0,0,0,0,0,0,0,0,0,0,0,0,0,0,0,0,0,0,-8,-8,-8,-8,-8,0,0,0,0,0,0,0,0,0,0,0,0,0,0,0,0,0,0,0,0,0,0,0]} 1. d4 {[%emt 0:02:45]} Nf6 {[%emt 0:00:12]} 2. Nf3 {[%emt 0:00:08]} g6 {[%emt 0:00:08]} 3. g3 {[%emt 0:00:07]} Bg7 {[%emt 0:00:29]} 4. Bg2 {[%emt 0:00:04]} O-O {[%emt 0:00:13]} 5. O-O {[%emt 0:00:04]} d6 {[%emt 0:00:59]} 6. Nbd2 {[%emt 0:00:27]} c5 {[%emt 0:09:10]} 7. dxc5 $1 {[%emt 0:00:56] 7.dxc5 scores better than 7.c3.} dxc5 {[%emt 0:00:06]} 8. c3 {[%emt 0:00:06] [#] A49: 1 d4 Nf6 2 Nf3 g6 3 g3: Anti-King's Indian systems.} Be6 $146 {[%emt 0:04:53]} (8... Nc6 $11) ({Predecessor:} 8... Nc6 9. e4 h6 10. Qe2 Be6 11. Nc4 Qc8 12. a4 Bh3 13. e5 Bxg2 14. Kxg2 Qe6 15. Re1 Nd5 16. Nfd2 Rfd8 17. f4 Nb6 18. a5 Nxc4 19. Nxc4 {1-0 (58) Piesik,P (2400)-Olszewski,M (2525) Tornelo INT 2020}) 9. Ng5 $14 {[%emt 0:21:52]} Bd5 {[%emt 0:00:52]} 10. e4 {[%emt 0:02:30][%cal Be2e4,Be4e5][%mdl 32] White is slightly better.} Bc6 {[%emt 0:06:05]} 11. e5 {[%emt 0:00:08]} Bxg2 {[%emt 0:03:08]} 12. Kxg2 {[%emt 0:00:13]} Nd5 {[%emt 0:02:53]} 13. Ndf3 {[%emt 0:00:21] [#] aiming for e6.} Nc7 {[%emt 0:11:54] Inhibits e6.} 14. Qa4 {[%emt 0:14:36]} h6 {[%emt 0:07:03]} 15. Rd1 {[%emt 0:01:37]} Qe8 {[%emt 0:15:07]} 16. Qxe8 {[%emt 0:00:18]} (16. Qh4 {feels hotter.} Qc6 17. Ne4 g5 18. Qg4) 16... Rxe8 {[%emt 0:00:07]} 17. Ne4 {[%emt 0:00:04]} Ne6 {[%emt 0:00:14]} 18. Ne1 {[%emt 0:01:26]} Bxe5 {[%emt 0:05:38] The position is equal.} 19. Bxh6 {[%emt 0:00:09]} b6 {[%emt 0:00:51]} 20. Nf3 {[%emt 0:01:12]} Bg7 {[%emt 0:04:29]} 21. Bxg7 {[%emt 0:01:04]} Kxg7 {[%emt 0:00:01]} 22. Nfg5 {[%emt 0:02:34]} Nf8 {[%emt 0:03:09]} 23. Rd5 {[%emt 0:15:42]} Nc6 {[%emt 0:00:37]} 24. Rad1 {[%emt 0:00:39]} Red8 {[%emt 0:00:58]} 25. f4 {[%emt 0:01:45]} Rxd5 {[%emt 0:02:30]} 26. Rxd5 {[%emt 0:00:08]} Rd8 {[%emt 0:00:03]} 27. Rxd8 {[%emt 0:00:10]} Nxd8 $11 {[%emt 0:00:02][%mdl 4096] Endgame KNN-KNN} 28. Kf2 {[%emt 0:00:27]} Nc6 {[%emt 0:01:15]} 29. Nf3 {[%emt 0:01:21]} Nd7 {[%emt 0:00:27]} 30. Ke3 {[%emt 0:00:44]} f5 {[%emt 0:04:09]} 31. Ned2 {[%emt 0:04:24]} e5 {[%emt 0:00:14]} 32. fxe5 {[%emt 0:05:22]} Ndxe5 {[%emt 0:00:21]} 33. Nxe5 {[%emt 0:00:50]} Nxe5 {[%emt 0:00:02] KN-KN} 34. h4 {[%emt 0:00:23]} Kh6 {[%emt 0:05:51]} 35. b3 {[%emt 0:04:32][%cal Bb2b3,Bb3b4][%mdl 32]} Kh5 {[%emt 0:02:06]} 36. Nf3 {[%emt 0:12:00]} Nxf3 {[%emt 0:00:21]} 37. Kxf3 {[%emt 0:00:04] KP-KP} g5 {[%emt 0:00:06]} 38. hxg5 {[%emt 0:04:11]} Kxg5 {[%emt 0:00:03]} 39. a4 {[%emt 0:00:06][%cal Ba2a4,Ba4a5][%mdl 32]} a6 {[%emt 0:01:42]} 40. b4 {[%emt 0:03:41]} c4 {[%emt 0:01:42]} 41. a5 {[%emt 0:00:26]} b5 {[%emt 0:00:18]} 42. Kf2 $1 {[%emt 0:00:16]} Kg4 {[%emt 0:00:57]} 43. Kg2 {[%emt 0:00:06]} f4 {[%emt 0:01:29]} 44. gxf4 {[%emt 0:00:03]} Kxf4 {[%emt 0:00:03]} 45. Kf2 {[%emt 0:00:05]} Ke4 {[%emt 0:00:04]} 46. Ke2 {[%emt 0:00:02]} Kf4 {[%emt 0:00:09] [#] ( -> ...Ke4)} 47. Kf2 $1 {[%emt 0:00:03]} Ke4 {[%emt 0:00:06] Weighted Error Value: White=0.04 (flawless) /Black=0.03 (flawless)} 1/2-1/2